[Event "Late-Titled-Tuesday-Blitz-March-12-2024"]
[Site "Chess.com"]
[Date "2024.03.12"]
[Round "1"]
[White "Witik"]
[Black "epiclord678"]
[Result "1-0"]
[WhiteElo "2735"]
[BlackElo "2416"]
[TimeControl "180+1"]
[EndTime "14:06:23 PDT"]
[Termination "Witik won on time"]

1. d4 {[%clk 0:02:54.9]} 1... Nf6 {[%clk 0:03:00.1]} 2. c4 {[%clk 0:02:53.6]}
2... g6 {[%clk 0:03:00.4]} 3. g3 {[%clk 0:02:53.5]} 3... Bg7 {[%clk 0:03:00.4]}
4. Bg2 {[%clk 0:02:53.9]} 4... d6 {[%clk 0:03:00.6]} 5. Nc3 {[%clk 0:02:54.4]}
5... O-O {[%clk 0:03:01.2]} 6. Nf3 {[%clk 0:02:54.6]} 6... Nc6 {[%clk
0:03:01.4]} 7. O-O {[%clk 0:02:54.9]} 7... a6 {[%clk 0:03:01.9]} 8. Re1 {[%clk
0:02:54.8]} 8... Rb8 {[%clk 0:03:00.9]} 9. Rb1 {[%clk 0:02:54.7]} 9... b5 {[%clk
0:02:59.9]} 10. cxb5 {[%clk 0:02:54.6]} 10... axb5 {[%clk 0:03:00.4]} 11. b4
{[%clk 0:02:55.3]} 11... Bd7 {[%clk 0:02:56.5]} 12. h3 {[%clk 0:02:49.3]} 12...
e6 {[%clk 0:02:12.8]} 13. e4 {[%clk 0:02:48.6]} 13... Ne7 {[%clk 0:02:12.5]} 14.
Nd2 {[%clk 0:02:29.6]} 14... h5 {[%clk 0:02:02.4]} 15. Nf3 {[%clk 0:02:26.6]}
15... Nh7 {[%clk 0:01:56.8]} 16. Bf4 {[%clk 0:02:04.5]} 16... Nc8 {[%clk
0:01:40.8]} 17. e5 {[%clk 0:01:55.8]} 17... Qe7 {[%clk 0:01:19.8]} 18. d5 {[%clk
0:01:51.8]} 18... dxe5 {[%clk 0:00:58.3]} 19. Nxe5 {[%clk 0:01:50.3]} 19... Nd6
{[%clk 0:00:32.2]} 20. dxe6 {[%clk 0:01:37]} 20... Bxe6 {[%clk 0:00:24.9]} 21.
Nxg6 {[%clk 0:01:15]} 21... fxg6 {[%clk 0:00:10.7]} 22. Rxe6 {[%clk 0:01:14.7]}
22... Qd7 {[%clk 0:00:04.2]} 23. Rxg6 {[%clk 0:01:02.4]} 23... Kh8 {[%clk
0:00:04.3]} 24. Nd5 {[%clk 0:00:52.9]} 24... Qf7 {[%clk 0:00:03.8]} 25. Qxh5
{[%clk 0:00:51.8]} 25... Rbe8 {[%clk 0:00:01.4]} 26. Nxc7 {[%clk 0:00:41.1]} 1-0

[Event "Late-Titled-Tuesday-Blitz-March-12-2024"]
[Site "Chess.com"]
[Date "2024.03.12"]
[Round "1"]
[White "SirStrateg"]
[Black "RianKapriaga"]
[Result "1-0"]
[WhiteElo "2650"]
[BlackElo "2306"]
[TimeControl "180+1"]
[EndTime "14:06:23 PDT"]
[Termination "SirStrateg won on time"]

1. d4 {[%clk 0:02:52.4]} 1... Nf6 {[%clk 0:02:56.8]} 2. Bf4 {[%clk 0:02:52.3]}
2... d5 {[%clk 0:02:51.4]} 3. e3 {[%clk 0:02:52.2]} 3... e6 {[%clk 0:02:50.6]}
4. Nd2 {[%clk 0:02:51.9]} 4... Bd6 {[%clk 0:02:49.8]} 5. Bg3 {[%clk 0:02:52.2]}
5... O-O {[%clk 0:02:47.2]} 6. Ngf3 {[%clk 0:02:51.6]} 6... c5 {[%clk
0:02:45.4]} 7. c3 {[%clk 0:02:51.6]} 7... Qc7 {[%clk 0:02:43.2]} 8. Ne5 {[%clk
0:02:51]} 8... Nbd7 {[%clk 0:02:33.2]} 9. f4 {[%clk 0:02:50.3]} 9... Ne4 {[%clk
0:02:29.4]} 10. Bd3 {[%clk 0:02:40.4]} 10... f5 {[%clk 0:02:22.7]} 11. O-O
{[%clk 0:02:22.2]} 11... Nxe5 {[%clk 0:02:06.4]} 12. fxe5 {[%clk 0:02:19.3]}
12... Be7 {[%clk 0:02:01.6]} 13. Nxe4 {[%clk 0:02:10.8]} 13... fxe4 {[%clk
0:01:51.7]} 14. Rxf8+ {[%clk 0:02:10.8]} 14... Bxf8 {[%clk 0:01:51.1]} 15. Bc2
{[%clk 0:02:06.8]} 15... cxd4 {[%clk 0:01:45]} 16. exd4 {[%clk 0:02:03.2]} 16...
Bd7 {[%clk 0:01:43.6]} 17. Qg4 {[%clk 0:01:58.4]} 17... Be7 {[%clk 0:01:29.3]}
18. Rf1 {[%clk 0:01:52.3]} 18... Rf8 {[%clk 0:01:25.5]} 19. Rxf8+ {[%clk
0:01:52.3]} 19... Bxf8 {[%clk 0:01:24.6]} 20. Bb3 {[%clk 0:01:50.2]} 20... a5
{[%clk 0:01:15.2]} 21. Bxd5 {[%clk 0:01:36.3]} 21... exd5 {[%clk 0:00:54.8]} 22.
e6 {[%clk 0:01:36.6]} 22... Bxe6 {[%clk 0:00:53]} 23. Qxe6+ {[%clk 0:01:32.3]}
23... Qf7 {[%clk 0:00:52.3]} 24. Qxf7+ {[%clk 0:01:23.1]} 24... Kxf7 {[%clk
0:00:50.3]} 25. a4 {[%clk 0:01:24]} 25... g6 {[%clk 0:00:22.8]} 26. Bc7 {[%clk
0:01:21.5]} 26... Bh6 {[%clk 0:00:20.1]} 27. Bxa5 {[%clk 0:01:21.2]} 27... Bc1
{[%clk 0:00:19.2]} 28. b3 {[%clk 0:01:21.5]} 28... Bd2 {[%clk 0:00:18.1]} 29.
Kf1 {[%clk 0:01:21.4]} 29... Bf4 {[%clk 0:00:11.1]} 30. h3 {[%clk 0:01:19.9]}
30... Bd6 {[%clk 0:00:07.1]} 31. Ke2 {[%clk 0:01:16.9]} 31... Ke6 {[%clk
0:00:06.7]} 32. Bd8 {[%clk 0:01:14.9]} 32... h5 {[%clk 0:00:06.1]} 33. Bg5
{[%clk 0:01:14.8]} 33... Kf5 {[%clk 0:00:05.2]} 34. Be3 {[%clk 0:01:13.8]} 34...
Ba3 {[%clk 0:00:03.4]} 35. c4 {[%clk 0:01:12.3]} 1-0

[Event "Late-Titled-Tuesday-Blitz-March-12-2024"]
[Site "Chess.com"]
[Date "2024.03.12"]
[Round "1"]
[White "Zohid6"]
[Black "Rogarcia1"]
[Result "1-0"]
[WhiteElo "2879"]
[BlackElo "2508"]
[TimeControl "180+1"]
[EndTime "14:06:24 PDT"]
[Termination "Zohid6 won by resignation"]

1. e4 {[%clk 0:02:55.8]} 1... c5 {[%clk 0:02:59.8]} 2. Nf3 {[%clk 0:02:55.1]}
2... d6 {[%clk 0:02:59.4]} 3. Bb5+ {[%clk 0:02:53.9]} 3... Bd7 {[%clk
0:02:55.4]} 4. Bxd7+ {[%clk 0:02:53.1]} 4... Nxd7 {[%clk 0:02:56.3]} 5. d4
{[%clk 0:02:52.5]} 5... cxd4 {[%clk 0:02:55.1]} 6. Qxd4 {[%clk 0:02:52.6]} 6...
Ngf6 {[%clk 0:02:52]} 7. c4 {[%clk 0:02:40.7]} 7... g6 {[%clk 0:02:42.7]} 8. O-O
{[%clk 0:02:39.4]} 8... Bg7 {[%clk 0:02:42.9]} 9. Nc3 {[%clk 0:02:37.8]} 9...
O-O {[%clk 0:02:41.9]} 10. Qe3 {[%clk 0:02:34.1]} 10... Qb6 {[%clk 0:02:05]} 11.
Qe2 {[%clk 0:02:32.6]} 11... Nc5 {[%clk 0:01:59.8]} 12. Re1 {[%clk 0:02:23.1]}
12... Rfe8 {[%clk 0:01:54.3]} 13. Rb1 {[%clk 0:02:18]} 13... Nfd7 {[%clk
0:01:40.3]} 14. Nd5 {[%clk 0:02:10.7]} 14... Qc6 {[%clk 0:01:40.5]} 15. b4
{[%clk 0:02:09.5]} 15... Ne6 {[%clk 0:01:37.5]} 16. b5 {[%clk 0:02:09]} 16...
Qc8 {[%clk 0:01:35]} 17. Be3 {[%clk 0:02:02.7]} 17... Ndc5 {[%clk 0:01:32.5]}
18. Qc2 {[%clk 0:01:58]} 18... Qd7 {[%clk 0:01:25.5]} 19. h4 {[%clk 0:01:56.6]}
19... Rac8 {[%clk 0:01:16.8]} 20. Rbd1 {[%clk 0:01:54.3]} 20... Nc7 {[%clk
0:00:37.1]} 21. Nf4 {[%clk 0:01:28]} 21... N5e6 {[%clk 0:00:29.9]} 22. Nxe6
{[%clk 0:01:21.6]} 22... Nxe6 {[%clk 0:00:29.6]} 23. Bxa7 {[%clk 0:01:17.6]}
23... Qxb5 {[%clk 0:00:26.2]} 24. Rc1 {[%clk 0:01:06.9]} 24... Qa6 {[%clk
0:00:25.6]} 25. Be3 {[%clk 0:01:06.1]} 25... Qa3 {[%clk 0:00:23.3]} 26. Rb1
{[%clk 0:01:04]} 26... Bc3 {[%clk 0:00:21.9]} 27. Rb3 {[%clk 0:01:02.1]} 27...
Qxb3 {[%clk 0:00:17.1]} 28. axb3 {[%clk 0:01:03]} 28... Bxe1 {[%clk 0:00:17.2]}
29. Nxe1 {[%clk 0:01:03.9]} 29... Rc7 {[%clk 0:00:17.2]} 30. Qa2 {[%clk
0:01:03]} 30... Rec8 {[%clk 0:00:17.3]} 31. Nd3 {[%clk 0:01:03.3]} 31... b5
{[%clk 0:00:15.9]} 32. cxb5 {[%clk 0:01:04.2]} 32... Rc3 {[%clk 0:00:16.4]} 33.
Nb4 {[%clk 0:01:03.5]} 33... Nc5 {[%clk 0:00:16.5]} 34. Nd5 {[%clk 0:01:02.6]}
34... Rd3 {[%clk 0:00:13.5]} 35. Nxe7+ {[%clk 0:01:02.3]} 1-0

[Event "Late-Titled-Tuesday-Blitz-March-12-2024"]
[Site "Chess.com"]
[Date "2024.03.12"]
[Round "1"]
[White "Mops_2004"]
[Black "Machidon"]
[Result "0-1"]
[WhiteElo "2826"]
[BlackElo "2488"]
[TimeControl "180+1"]
[EndTime "14:06:28 PDT"]
[Termination "Machidon won by resignation"]

1. g3 {[%clk 0:03:00.9]} 1... e5 {[%clk 0:02:59.7]} 2. Bg2 {[%clk 0:03:00.9]}
2... Nf6 {[%clk 0:02:59.5]} 3. d3 {[%clk 0:02:56.8]} 3... h6 {[%clk 0:02:54.9]}
4. Nf3 {[%clk 0:02:54.7]} 4... Nc6 {[%clk 0:02:54.3]} 5. c4 {[%clk 0:02:53.7]}
5... Bb4+ {[%clk 0:02:46.2]} 6. Nc3 {[%clk 0:02:49.3]} 6... e4 {[%clk 0:02:45]}
7. dxe4 {[%clk 0:02:24.5]} 7... Nxe4 {[%clk 0:02:43.2]} 8. Qc2 {[%clk
0:02:03.9]} 8... Qe7 {[%clk 0:02:36]} 9. O-O {[%clk 0:02:02.2]} 9... Bxc3 {[%clk
0:02:35.4]} 10. bxc3 {[%clk 0:02:02.2]} 10... O-O {[%clk 0:02:35]} 11. Nd4
{[%clk 0:02:02.3]} 11... Re8 {[%clk 0:02:28.8]} 12. f3 {[%clk 0:01:37.1]} 12...
Nc5 {[%clk 0:02:25.5]} 13. e4 {[%clk 0:01:36.3]} 13... d6 {[%clk 0:02:17.9]} 14.
Be3 {[%clk 0:01:36.2]} 14... Ne5 {[%clk 0:02:11.7]} 15. Qe2 {[%clk 0:01:34.8]}
15... Be6 {[%clk 0:02:11.5]} 16. Nxe6 {[%clk 0:01:31.9]} 16... Qxe6 {[%clk
0:02:12.4]} 17. f4 {[%clk 0:01:10.9]} 17... Qxc4 {[%clk 0:02:11.8]} 18. Qxc4
{[%clk 0:01:04.1]} 18... Nxc4 {[%clk 0:02:12.7]} 19. Bxc5 {[%clk 0:01:04.3]}
19... dxc5 {[%clk 0:02:12.8]} 20. e5 {[%clk 0:01:04.9]} 20... c6 {[%clk
0:02:10.3]} 21. Rfd1 {[%clk 0:00:51.1]} 21... Rad8 {[%clk 0:01:59.5]} 22. Kf2
{[%clk 0:00:50.9]} 22... Kf8 {[%clk 0:01:55.5]} 23. Rab1 {[%clk 0:00:47.9]}
23... Nb6 {[%clk 0:01:46.9]} 24. Rxd8 {[%clk 0:00:30.7]} 24... Rxd8 {[%clk
0:01:47.8]} 25. Ke2 {[%clk 0:00:29.7]} 25... Rd7 {[%clk 0:01:41.3]} 26. Bh3
{[%clk 0:00:25.6]} 26... Rd8 {[%clk 0:01:40.2]} 27. a4 {[%clk 0:00:22.1]} 27...
Nxa4 {[%clk 0:01:33.9]} 28. Rxb7 {[%clk 0:00:21.7]} 28... Nxc3+ {[%clk
0:01:34.5]} 29. Ke3 {[%clk 0:00:20.3]} 29... c4 {[%clk 0:01:20.4]} 30. f5 {[%clk
0:00:15.8]} 30... Nd5+ {[%clk 0:01:18.1]} 31. Ke4 {[%clk 0:00:13]} 31... c3
{[%clk 0:01:14]} 32. Rb1 {[%clk 0:00:08.3]} 32... a5 {[%clk 0:01:11.2]} 33. Bf1
{[%clk 0:00:05.5]} 33... c2 {[%clk 0:01:07]} 34. Rc1 {[%clk 0:00:05.5]} 34...
Nb4 {[%clk 0:01:07.7]} 35. Be2 {[%clk 0:00:04.1]} 35... a4 {[%clk 0:01:07.2]}
36. e6 {[%clk 0:00:02.3]} 36... fxe6 {[%clk 0:01:06.6]} 37. fxe6 {[%clk
0:00:03.2]} 37... Ke7 {[%clk 0:01:06.3]} 38. Bc4 {[%clk 0:00:03.4]} 38... Rd1
{[%clk 0:01:04.9]} 0-1

[Event "Late-Titled-Tuesday-Blitz-March-12-2024"]
[Site "Chess.com"]
[Date "2024.03.12"]
[Round "1"]
[White "corvachesky"]
[Black "Marcan2b"]
[Result "0-1"]
[WhiteElo "2524"]
[BlackElo "2928"]
[TimeControl "180+1"]
[EndTime "14:06:31 PDT"]
[Termination "Marcan2b won by resignation"]

1. Nf3 {[%clk 0:03:00.9]} 1... d5 {[%clk 0:02:57.3]} 2. d4 {[%clk 0:02:55.8]}
2... Nf6 {[%clk 0:02:57.1]} 3. c4 {[%clk 0:02:55.9]} 3... e6 {[%clk 0:02:55.7]}
4. Nc3 {[%clk 0:02:55.1]} 4... a6 {[%clk 0:02:56.3]} 5. cxd5 {[%clk 0:02:50.6]}
5... exd5 {[%clk 0:02:57.2]} 6. Bg5 {[%clk 0:02:49.9]} 6... Be6 {[%clk
0:02:54.9]} 7. e3 {[%clk 0:02:49.6]} 7... Nbd7 {[%clk 0:02:53.6]} 8. Bd3 {[%clk
0:02:49.7]} 8... c6 {[%clk 0:02:52.3]} 9. Qc2 {[%clk 0:02:48.6]} 9... Bd6 {[%clk
0:02:51.9]} 10. a3 {[%clk 0:02:40.7]} 10... O-O {[%clk 0:02:49]} 11. O-O {[%clk
0:02:40]} 11... h6 {[%clk 0:02:48.6]} 12. Bh4 {[%clk 0:02:39.4]} 12... Re8
{[%clk 0:02:47.9]} 13. b4 {[%clk 0:02:38.9]} 13... Bg4 {[%clk 0:02:44.8]} 14.
Nd2 {[%clk 0:02:31.6]} 14... Qc7 {[%clk 0:02:41.9]} 15. Bg3 {[%clk 0:02:31.2]}
15... Bxg3 {[%clk 0:02:41.3]} 16. hxg3 {[%clk 0:02:31.3]} 16... Re7 {[%clk
0:02:31.7]} 17. Nb3 {[%clk 0:02:29.8]} 17... Rae8 {[%clk 0:02:30.7]} 18. Rae1
{[%clk 0:02:29.7]} 18... Nb6 {[%clk 0:02:20.4]} 19. Nc5 {[%clk 0:02:28.5]} 19...
Nc8 {[%clk 0:02:10.9]} 20. a4 {[%clk 0:02:21.7]} 20... Nd6 {[%clk 0:02:09.3]}
21. Rc1 {[%clk 0:02:11]} 21... Qd8 {[%clk 0:02:01.3]} 22. b5 {[%clk 0:02:08.2]}
22... cxb5 {[%clk 0:01:58.8]} 23. axb5 {[%clk 0:02:09.1]} 23... a5 {[%clk
0:01:59.3]} 24. N3a4 {[%clk 0:01:45.9]} 24... h5 {[%clk 0:01:43.6]} 25. b6
{[%clk 0:01:44]} 25... Nfe4 {[%clk 0:01:40.2]} 26. Bxe4 {[%clk 0:01:41.8]} 26...
dxe4 {[%clk 0:01:36.5]} 27. Qd2 {[%clk 0:01:33.8]} 27... h4 {[%clk 0:01:27.2]}
28. gxh4 {[%clk 0:01:33.2]} 28... Nf5 {[%clk 0:01:25.3]} 29. Qxa5 {[%clk
0:01:18.3]} 29... Nxh4 {[%clk 0:01:25.1]} 30. Nb3 {[%clk 0:01:09.6]} 30... Re6
{[%clk 0:01:21.1]} 31. Rc5 {[%clk 0:00:56.4]} 31... Rg6 {[%clk 0:01:16.3]} 32.
Rfc1 {[%clk 0:00:49.1]} 32... Nxg2 {[%clk 0:01:08.3]} 33. Kf1 {[%clk 0:00:43.5]}
33... Qh4 {[%clk 0:01:05.6]} 34. f4 {[%clk 0:00:34]} 34... Nxe3+ {[%clk
0:01:01.3]} 35. Kg1 {[%clk 0:00:31.3]} 35... Bd1+ {[%clk 0:01:01.5]} 36. Rg5
{[%clk 0:00:28.4]} 36... Bxb3 {[%clk 0:00:56.2]} 37. Qb5 {[%clk 0:00:18.9]}
37... Rxg5+ {[%clk 0:00:53.9]} 38. Qxg5 {[%clk 0:00:18.6]} 38... Qxg5+ {[%clk
0:00:53.1]} 39. fxg5 {[%clk 0:00:19.5]} 39... Bxa4 {[%clk 0:00:53.6]} 40. Rc7
{[%clk 0:00:19.7]} 40... Bc6 {[%clk 0:00:53.9]} 0-1

[Event "Late-Titled-Tuesday-Blitz-March-12-2024"]
[Site "Chess.com"]
[Date "2024.03.12"]
[Round "1"]
[White "Rodalquilar"]
[Black "19912131712118"]
[Result "1-0"]
[WhiteElo "2790"]
[BlackElo "2446"]
[TimeControl "180+1"]
[EndTime "14:06:31 PDT"]
[Termination "Rodalquilar won on time"]

1. d4 {[%clk 0:03:00.9]} 1... d5 {[%clk 0:02:59]} 2. Nf3 {[%clk 0:03:01.1]} 2...
Nf6 {[%clk 0:02:58.4]} 3. Bf4 {[%clk 0:03:01.2]} 3... e6 {[%clk 0:02:54]} 4. e3
{[%clk 0:03:01.5]} 4... Bd6 {[%clk 0:02:54.4]} 5. Nbd2 {[%clk 0:02:56.8]} 5...
O-O {[%clk 0:02:47.2]} 6. c3 {[%clk 0:02:56.4]} 6... c5 {[%clk 0:02:47.5]} 7.
Bd3 {[%clk 0:02:55.8]} 7... Nc6 {[%clk 0:02:47.5]} 8. Bg3 {[%clk 0:02:54.4]}
8... b6 {[%clk 0:02:44.1]} 9. e4 {[%clk 0:02:51.7]} 9... dxe4 {[%clk 0:02:40.3]}
10. Nxe4 {[%clk 0:02:51.5]} 10... Nxe4 {[%clk 0:02:37.9]} 11. Bxe4 {[%clk
0:02:52.4]} 11... Bb7 {[%clk 0:02:36.7]} 12. dxc5 {[%clk 0:02:46.1]} 12... Bxc5
{[%clk 0:02:32.8]} 13. Qa4 {[%clk 0:02:44.2]} 13... Na5 {[%clk 0:02:24.9]} 14.
Rd1 {[%clk 0:02:40]} 14... Qe8 {[%clk 0:02:18.7]} 15. Bxh7+ {[%clk 0:02:13.2]}
15... Kxh7 {[%clk 0:01:06.4]} 16. Qh4+ {[%clk 0:02:12.7]} 16... Kg8 {[%clk
0:01:06.6]} 17. Ng5 {[%clk 0:02:12.5]} 17... Be4 {[%clk 0:01:04.9]} 18. Qxe4
{[%clk 0:01:42.9]} 18... f5 {[%clk 0:01:03.3]} 19. Qh4 {[%clk 0:01:38.5]} 19...
Qg6 {[%clk 0:01:01.1]} 20. b4 {[%clk 0:01:29.3]} 20... f4 {[%clk 0:01:01.2]} 21.
Bxf4 {[%clk 0:01:29.6]} 21... Rxf4 {[%clk 0:01:00.2]} 22. Qxf4 {[%clk 0:01:21]}
22... Rf8 {[%clk 0:00:57.9]} 23. Qg4 {[%clk 0:01:07.2]} 23... Bxf2+ {[%clk
0:00:51.7]} 24. Ke2 {[%clk 0:01:07.5]} 24... Nc6 {[%clk 0:00:03.5]} 25. Qxe6+
{[%clk 0:01:02.9]} 25... Qxe6+ {[%clk 0:00:03.9]} 26. Nxe6 {[%clk 0:01:03.8]}
26... Re8 {[%clk 0:00:03.7]} 27. Kxf2 {[%clk 0:01:03.5]} 27... Rxe6 {[%clk
0:00:04]} 28. Rhe1 {[%clk 0:01:03.6]} 28... Rf6+ {[%clk 0:00:04]} 29. Kg1 {[%clk
0:01:03.7]} 29... a5 {[%clk 0:00:04.6]} 30. b5 {[%clk 0:01:02.9]} 30... Na7
{[%clk 0:00:05.1]} 31. a4 {[%clk 0:01:03.1]} 31... Rf7 {[%clk 0:00:04.4]} 32.
Rd6 {[%clk 0:01:01.1]} 32... Rb7 {[%clk 0:00:04]} 33. Ree6 {[%clk 0:00:58.9]}
33... Kh7 {[%clk 0:00:04]} 34. Rxb6 {[%clk 0:00:58.8]} 34... Rc7 {[%clk
0:00:04.4]} 35. Ra6 {[%clk 0:00:58.1]} 35... Nc8 {[%clk 0:00:04.3]} 36. Rec6
{[%clk 0:00:58.1]} 1-0

[Event "Late-Titled-Tuesday-Blitz-March-12-2024"]
[Site "Chess.com"]
[Date "2024.03.12"]
[Round "1"]
[White "chess_blitz00"]
[Black "MarcoRiehle"]
[Result "0-1"]
[WhiteElo "2453"]
[BlackElo "2805"]
[TimeControl "180+1"]
[EndTime "14:06:34 PDT"]
[Termination "MarcoRiehle won by resignation"]

1. Nf3 {[%clk 0:03:00.9]} 1... Nf6 {[%clk 0:02:52.7]} 2. g3 {[%clk 0:03:01]}
2... c5 {[%clk 0:02:49]} 3. Bg2 {[%clk 0:03:01.4]} 3... Nc6 {[%clk 0:02:49.6]}
4. O-O {[%clk 0:03:01.7]} 4... e5 {[%clk 0:02:48.6]} 5. d3 {[%clk 0:03:01.8]}
5... d5 {[%clk 0:02:48.7]} 6. e4 {[%clk 0:02:55.9]} 6... d4 {[%clk 0:02:47.6]}
7. a4 {[%clk 0:02:56]} 7... Bg4 {[%clk 0:02:40.8]} 8. Qe1 {[%clk 0:02:49.7]}
8... Qd7 {[%clk 0:02:38.6]} 9. Na3 {[%clk 0:02:41.3]} 9... Bd6 {[%clk
0:02:35.9]} 10. Nc4 {[%clk 0:02:27]} 10... Bc7 {[%clk 0:02:35.7]} 11. Nfd2
{[%clk 0:02:26.2]} 11... h5 {[%clk 0:02:33.4]} 12. f3 {[%clk 0:02:20]} 12... Bh3
{[%clk 0:02:30.8]} 13. Nb3 {[%clk 0:02:16.2]} 13... b6 {[%clk 0:02:19.6]} 14. f4
{[%clk 0:02:04.2]} 14... h4 {[%clk 0:02:14.1]} 15. f5 {[%clk 0:02:04.2]} 15...
Bxg2 {[%clk 0:02:13.4]} 16. Kxg2 {[%clk 0:02:05.1]} 16... hxg3 {[%clk
0:02:13.6]} 17. hxg3 {[%clk 0:02:05.9]} 17... O-O-O {[%clk 0:02:10.7]} 18. Qe2
{[%clk 0:01:48.2]} 18... Rh7 {[%clk 0:02:04.4]} 19. Bg5 {[%clk 0:01:46.4]} 19...
Rdh8 {[%clk 0:02:03.9]} 20. Rh1 {[%clk 0:01:44.6]} 20... Nh5 {[%clk 0:02:01.5]}
21. Nbd2 {[%clk 0:00:57.6]} 21... f6 {[%clk 0:01:50.9]} 22. Bh4 {[%clk
0:00:57.1]} 22... Nf4+ {[%clk 0:01:39.3]} 23. gxf4 {[%clk 0:00:56.2]} 23... Rxh4
{[%clk 0:01:39.9]} 24. fxe5 {[%clk 0:00:37.7]} 24... Nxe5 {[%clk 0:01:34]} 25.
Nxe5 {[%clk 0:00:35]} 25... Bxe5 {[%clk 0:01:33.3]} 26. Rxh4 {[%clk 0:00:30.6]}
26... Rxh4 {[%clk 0:01:31.9]} 27. Rh1 {[%clk 0:00:18.3]} 27... Rxh1 {[%clk
0:01:30.3]} 28. Kxh1 {[%clk 0:00:19.2]} 28... Qxa4 {[%clk 0:01:22.7]} 29. Nc4
{[%clk 0:00:15.2]} 29... Qa1+ {[%clk 0:01:10.9]} 30. Kg2 {[%clk 0:00:14.7]}
30... Qc1 {[%clk 0:01:11.4]} 31. Nxe5 {[%clk 0:00:08.2]} 31... fxe5 {[%clk
0:01:12.3]} 32. b3 {[%clk 0:00:04.5]} 32... Kb7 {[%clk 0:01:10.5]} 33. Kh3
{[%clk 0:00:03.7]} 33... Ka6 {[%clk 0:01:08.2]} 34. Qg4 {[%clk 0:00:02.9]} 34...
Qh6+ {[%clk 0:00:57.5]} 35. Kg3 {[%clk 0:00:02.9]} 35... Kb5 {[%clk 0:00:58]}
36. Qg5 {[%clk 0:00:02.6]} 36... Qxg5+ {[%clk 0:00:57]} 0-1

[Event "Late-Titled-Tuesday-Blitz-March-12-2024"]
[Site "Chess.com"]
[Date "2024.03.12"]
[Round "1"]
[White "Alexm42100"]
[Black "SamuraisOfChess"]
[Result "0-1"]
[WhiteElo "2114"]
[BlackElo "2580"]
[TimeControl "180+1"]
[EndTime "14:06:34 PDT"]
[Termination "SamuraisOfChess won by resignation"]

1. d4 {[%clk 0:02:59.9]} 1... Nf6 {[%clk 0:02:59.2]} 2. c4 {[%clk 0:02:59.7]}
2... e6 {[%clk 0:02:59.3]} 3. Nc3 {[%clk 0:02:59.4]} 3... Bb4 {[%clk 0:02:58.4]}
4. e3 {[%clk 0:02:59]} 4... Bxc3+ {[%clk 0:02:58.5]} 5. bxc3 {[%clk 0:02:58.4]}
5... d5 {[%clk 0:02:58.7]} 6. cxd5 {[%clk 0:02:55.2]} 6... exd5 {[%clk
0:02:58.9]} 7. Bd3 {[%clk 0:02:54.5]} 7... O-O {[%clk 0:02:58.8]} 8. Ne2 {[%clk
0:02:54.8]} 8... c6 {[%clk 0:02:57.5]} 9. O-O {[%clk 0:02:54.1]} 9... Re8 {[%clk
0:02:57.5]} 10. Ng3 {[%clk 0:02:53]} 10... Nbd7 {[%clk 0:02:55.4]} 11. f3 {[%clk
0:02:49]} 11... Nf8 {[%clk 0:02:54.8]} 12. e4 {[%clk 0:02:46.6]} 12... dxe4
{[%clk 0:02:54.8]} 13. fxe4 {[%clk 0:02:47.5]} 13... Ng6 {[%clk 0:02:53.1]} 14.
Bg5 {[%clk 0:02:37.8]} 14... Qa5 {[%clk 0:02:49.5]} 15. Bxf6 {[%clk 0:02:33.3]}
15... gxf6 {[%clk 0:02:48.5]} 16. Nh5 {[%clk 0:02:24.1]} 16... Re6 {[%clk
0:02:30.6]} 17. Nxf6+ {[%clk 0:02:04.5]} 17... Kg7 {[%clk 0:02:29.9]} 18. Nh5+
{[%clk 0:02:00.9]} 18... Kh6 {[%clk 0:02:28.8]} 19. Qd2+ {[%clk 0:01:59.7]}
19... Qg5 {[%clk 0:02:27.1]} 20. Qxg5+ {[%clk 0:01:52.7]} 20... Kxg5 {[%clk
0:02:27.6]} 21. Ng3 {[%clk 0:01:37.9]} 21... Re7 {[%clk 0:02:21.4]} 22. Rf5+
{[%clk 0:01:31.4]} 22... Bxf5 {[%clk 0:02:20.5]} 23. Nxf5 {[%clk 0:01:28.7]}
23... Rd7 {[%clk 0:02:17.5]} 24. g3 {[%clk 0:01:25.6]} 24... Ne7 {[%clk
0:02:00]} 25. h4+ {[%clk 0:01:18.5]} 25... Kf6 {[%clk 0:01:59.4]} 26. e5+ {[%clk
0:01:11.8]} 26... Ke6 {[%clk 0:01:50.7]} 27. Rf1 {[%clk 0:00:22.9]} 27... Nd5
{[%clk 0:01:41.3]} 28. Nd6 {[%clk 0:00:17.2]} 28... Rxd6 {[%clk 0:01:40.6]} 29.
exd6 {[%clk 0:00:15.1]} 29... Nxc3 {[%clk 0:01:40.4]} 30. Bc4+ {[%clk
0:00:14.7]} 30... Nd5 {[%clk 0:01:40.2]} 31. Kg2 {[%clk 0:00:13.8]} 31... Rf8
{[%clk 0:01:39]} 32. Kh3 {[%clk 0:00:12.1]} 32... Kxd6 {[%clk 0:01:38.9]} 33.
Bxd5 {[%clk 0:00:10.8]} 33... Kxd5 {[%clk 0:01:38.5]} 34. Kg4 {[%clk 0:00:11.3]}
34... Kxd4 {[%clk 0:01:38.3]} 35. Kh5 {[%clk 0:00:11.3]} 35... c5 {[%clk
0:01:35.9]} 36. g4 {[%clk 0:00:11.5]} 36... c4 {[%clk 0:01:36]} 37. g5 {[%clk
0:00:11.5]} 37... c3 {[%clk 0:01:35.3]} 38. Kh6 {[%clk 0:00:12.1]} 38... Kd3
{[%clk 0:01:33.6]} 39. Kg7 {[%clk 0:00:11.8]} 39... Rc8 {[%clk 0:01:30.2]} 40.
Kxh7 {[%clk 0:00:09.8]} 40... c2 {[%clk 0:01:25.7]} 41. Kg7 {[%clk 0:00:08.6]}
41... c1=Q {[%clk 0:01:22.7]} 42. Rxc1 {[%clk 0:00:07.4]} 42... Rxc1 {[%clk
0:01:23.3]} 43. Kxf7 {[%clk 0:00:08.3]} 43... Rh1 {[%clk 0:01:22.8]} 0-1